[Event "*** Titled Tuesday Blitz"]
[Site "Chess.com"]
[Date "2020.10.20"]
[Round "2"]
[White "BJthechessgod"]
[Black "Vyacheslav_N"]
[Result "1/2-1/2"]
[WhiteElo "2208"]
[BlackElo "2403"]
[TimeControl "180+1"]
[EndTime "10:21:25 PDT"]
[Termination "Game drawn by 50-move rule"]

1. e4 {[%clk 0:03:00.9]} 1... c5 {[%clk 0:02:55.7]} 2. Nf3 {[%clk 0:03:00.6]}
2... d6 {[%clk 0:02:45.8]} 3. Bb5+ {[%clk 0:02:58.3]} 3... Nd7 {[%clk 0:02:42]}
4. Ba4 {[%clk 0:02:55.6]} 4... a6 {[%clk 0:02:35.5]} 5. c3 {[%clk 0:02:51.7]}
5... b5 {[%clk 0:02:35.6]} 6. Bc2 {[%clk 0:02:50.5]} 6... c4 {[%clk 0:02:35.6]}
7. O-O {[%clk 0:02:49.8]} 7... e5 {[%clk 0:02:35]} 8. b3 {[%clk 0:02:47.9]} 8...
Qc7 {[%clk 0:02:34.2]} 9. a4 {[%clk 0:02:44.7]} 9... Bb7 {[%clk 0:02:33.4]} 10.
Qe2 {[%clk 0:02:36.1]} 10... cxb3 {[%clk 0:02:32.3]} 11. Bxb3 {[%clk 0:02:35.5]}
11... Nc5 {[%clk 0:02:32.9]} 12. Bc2 {[%clk 0:02:30.9]} 12... bxa4 {[%clk
0:02:27.9]} 13. d4 {[%clk 0:02:30.4]} 13... Nb3 {[%clk 0:02:28.2]} 14. Bxb3
{[%clk 0:02:28.8]} 14... axb3 {[%clk 0:02:29.1]} 15. dxe5 {[%clk 0:02:25.5]}
15... dxe5 {[%clk 0:02:30]} 16. Bg5 {[%clk 0:02:16.3]} 16... Be7 {[%clk
0:02:29.2]} 17. Nbd2 {[%clk 0:02:10.7]} 17... Nf6 {[%clk 0:02:23.2]} 18. Nxb3
{[%clk 0:02:09.3]} 18... Qxc3 {[%clk 0:02:08.5]} 19. Na5 {[%clk 0:02:04.9]}
19... Bxe4 {[%clk 0:02:04.5]} 20. Bxf6 {[%clk 0:01:57.6]} 20... Bxf3 {[%clk
0:02:04.5]} 21. Qxe5 {[%clk 0:01:55.7]} 21... Qxe5 {[%clk 0:01:58.6]} 22. Bxe5
{[%clk 0:01:55.1]} 22... Bd5 {[%clk 0:01:59.2]} 23. Rfd1 {[%clk 0:01:51.4]}
23... Be4 {[%clk 0:01:32.3]} 24. Nc4 {[%clk 0:01:49.5]} 24... O-O {[%clk
0:01:29.4]} 25. Bd6 {[%clk 0:01:48.6]} 25... Rfe8 {[%clk 0:01:26.4]} 26. Nb6
{[%clk 0:01:38.3]} 26... Ra7 {[%clk 0:01:24.6]} 27. Bxe7 {[%clk 0:01:36]} 27...
Raxe7 {[%clk 0:01:25.5]} 28. Rxa6 {[%clk 0:01:36.1]} 28... Bc2 {[%clk
0:01:23.7]} 29. Rf1 {[%clk 0:01:27.9]} 29... Bd3 {[%clk 0:01:23]} 30. Raa1
{[%clk 0:01:09.2]} 30... Bxf1 {[%clk 0:01:22.5]} 31. Kxf1 {[%clk 0:01:10.1]}
31... f6 {[%clk 0:01:20.5]} 32. Nd5 {[%clk 0:01:10]} 32... Rd7 {[%clk
0:01:20.4]} 33. Ne3 {[%clk 0:01:09.9]} 33... g6 {[%clk 0:01:19.8]} 34. Ke2
{[%clk 0:01:09.9]} 34... f5 {[%clk 0:01:20.1]} 35. Kf3 {[%clk 0:01:10]} 35...
Rd4 {[%clk 0:01:18.6]} 36. g3 {[%clk 0:01:07.8]} 36... h5 {[%clk 0:01:18.2]} 37.
h4 {[%clk 0:01:01.2]} 37... Re7 {[%clk 0:01:14.5]} 38. Ng2 {[%clk 0:00:59.3]}
38... Kg7 {[%clk 0:01:13.6]} 39. Nf4 {[%clk 0:00:59.5]} 39... Rd6 {[%clk
0:01:11.2]} 40. Ra5 {[%clk 0:00:55]} 40... Re4 {[%clk 0:01:06.3]} 41. Ra7+
{[%clk 0:00:53.8]} 41... Kf6 {[%clk 0:01:06.3]} 42. Ra5 {[%clk 0:00:53.7]} 42...
Rc4 {[%clk 0:01:03.4]} 43. Rb5 {[%clk 0:00:53.3]} 43... Rc3+ {[%clk 0:01:03.3]}
44. Kg2 {[%clk 0:00:52.7]} 44... Rc2 {[%clk 0:01:01.8]} 45. Nd5+ {[%clk
0:00:49.9]} 45... Ke6 {[%clk 0:00:58.6]} 46. Nf4+ {[%clk 0:00:49.6]} 46... Kd7
{[%clk 0:00:58.9]} 47. Kf3 {[%clk 0:00:41.8]} 47... Rdd2 {[%clk 0:00:54.1]} 48.
Nh3 {[%clk 0:00:42.3]} 48... Rc3+ {[%clk 0:00:53.4]} 49. Kf4 {[%clk 0:00:40.7]}
49... Rd4+ {[%clk 0:00:53.7]} 50. Kg5 {[%clk 0:00:38]} 50... Rg4+ {[%clk
0:00:54.3]} 51. Kf6 {[%clk 0:00:38.7]} 51... Rf3 {[%clk 0:00:51.3]} 52. Rb7+
{[%clk 0:00:32.5]} 52... Kd6 {[%clk 0:00:48.2]} 53. Rg7 {[%clk 0:00:32.5]} 53...
Kc5 {[%clk 0:00:22.4]} 54. Rxg6 {[%clk 0:00:32.5]} 54... Kd4 {[%clk 0:00:20]}
55. Rg5 {[%clk 0:00:32]} 55... Ke4 {[%clk 0:00:14.3]} 56. Rxh5 {[%clk
0:00:31.7]} 56... f4 {[%clk 0:00:14.2]} 57. Ng5+ {[%clk 0:00:30.9]} 57... Rxg5
{[%clk 0:00:13.3]} 58. hxg5 {[%clk 0:00:26.6]} 58... fxg3+ {[%clk 0:00:13.8]}
59. Ke6 {[%clk 0:00:17.1]} 59... g2 {[%clk 0:00:14.7]} 60. Rh4+ {[%clk
0:00:16.6]} 60... Rf4 {[%clk 0:00:13.9]} 61. f3+ {[%clk 0:00:12.1]} 61... Kxf3
{[%clk 0:00:13.4]} 62. Rh3+ {[%clk 0:00:11.2]} 62... Kf2 {[%clk 0:00:13.8]} 63.
Rh2 {[%clk 0:00:11.1]} 63... Rg4 {[%clk 0:00:13.1]} 64. Kf6 {[%clk 0:00:08.7]}
64... Kf3 {[%clk 0:00:11]} 65. g6 {[%clk 0:00:08.3]} 65... g1=Q {[%clk
0:00:09.3]} 66. Rh3+ {[%clk 0:00:09.2]} 66... Ke4 {[%clk 0:00:09]} 67. Rh6
{[%clk 0:00:08.6]} 67... Qf2+ {[%clk 0:00:09.1]} 68. Kg7 {[%clk 0:00:09.5]}
68... Rf4 {[%clk 0:00:08.5]} 69. Kh7 {[%clk 0:00:10.4]} 69... Rf7+ {[%clk
0:00:07.3]} 70. g7 {[%clk 0:00:11.3]} 70... Rxg7+ {[%clk 0:00:07.3]} 71. Kxg7
{[%clk 0:00:11.5]} 71... Qf5 {[%clk 0:00:08.2]} 72. Rf6 {[%clk 0:00:09.1]} 72...
Qg5+ {[%clk 0:00:07.4]} 73. Rg6 {[%clk 0:00:09.1]} 73... Qe5+ {[%clk 0:00:08]}
74. Kf7 {[%clk 0:00:09.3]} 74... Kf5 {[%clk 0:00:07.8]} 75. Rh6 {[%clk
0:00:06.8]} 75... Qd5+ {[%clk 0:00:06.5]} 76. Ke7 {[%clk 0:00:06.7]} 76... Qc5+
{[%clk 0:00:06.5]} 77. Kf7 {[%clk 0:00:07.1]} 77... Qc7+ {[%clk 0:00:06.4]} 78.
Kf8 {[%clk 0:00:06.8]} 78... Kg5 {[%clk 0:00:06.3]} 79. Re6 {[%clk 0:00:06.6]}
79... Qc5+ {[%clk 0:00:02.8]} 80. Kf7 {[%clk 0:00:06.4]} 80... Qf5+ {[%clk
0:00:03.1]} 81. Ke7 {[%clk 0:00:06.1]} 81... Qh7+ {[%clk 0:00:03.7]} 82. Kd6
{[%clk 0:00:06.2]} 82... Kf5 {[%clk 0:00:04.6]} 83. Re5+ {[%clk 0:00:06.4]}
83... Kf6 {[%clk 0:00:05.1]} 84. Re6+ {[%clk 0:00:06.9]} 84... Kf5 {[%clk
0:00:05.8]} 85. Re5+ {[%clk 0:00:07.2]} 85... Kf4 {[%clk 0:00:06.6]} 86. Rb5
{[%clk 0:00:05.3]} 86... Qg6+ {[%clk 0:00:06.4]} 87. Kc5 {[%clk 0:00:05.4]}
87... Ke4 {[%clk 0:00:06.3]} 88. Kc4 {[%clk 0:00:05.2]} 88... Qc6+ {[%clk
0:00:05.2]} 89. Rc5 {[%clk 0:00:04.9]} 89... Qa4+ {[%clk 0:00:05.7]} 90. Kc3
{[%clk 0:00:05.3]} 90... Qa3+ {[%clk 0:00:05.3]} 91. Kc4 {[%clk 0:00:05.3]}
91... Qd3+ {[%clk 0:00:05.8]} 92. Kb4 {[%clk 0:00:05.4]} 92... Qd2+ {[%clk
0:00:05.5]} 93. Kc4 {[%clk 0:00:05.4]} 93... Qc2+ {[%clk 0:00:05]} 94. Kb4
{[%clk 0:00:05.4]} 94... Qa2 {[%clk 0:00:05.2]} 95. Rb5 {[%clk 0:00:03]} 95...
Kd4 {[%clk 0:00:04.8]} 96. Rh5 {[%clk 0:00:02.4]} 96... Qc4+ {[%clk 0:00:04.7]}
97. Ka5 {[%clk 0:00:02.5]} 97... Qb3 {[%clk 0:00:04.4]} 98. Rh4+ {[%clk
0:00:02.3]} 98... Kd5 {[%clk 0:00:04.2]} 99. Rh5+ {[%clk 0:00:03.2]} 99... Ke6
{[%clk 0:00:04.7]} 100. Rh4 {[%clk 0:00:03.8]} 100... Qa3+ {[%clk 0:00:03.2]}
101. Kb5 {[%clk 0:00:04.1]} 101... Qb2+ {[%clk 0:00:03.6]} 102. Rb4 {[%clk
0:00:04.6]} 102... Qe2+ {[%clk 0:00:03.4]} 103. Ka4 {[%clk 0:00:04.6]} 103...
Kd6 {[%clk 0:00:03.9]} 104. Rb5 {[%clk 0:00:04.7]} 104... Kc6 {[%clk 0:00:04]}
105. Rb4 {[%clk 0:00:05.6]} 105... Qa6+ {[%clk 0:00:04.1]} 106. Kb3 {[%clk
0:00:05.7]} 106... Qd3+ {[%clk 0:00:05]} 107. Kb2 {[%clk 0:00:05.4]} 107... Kc5
{[%clk 0:00:05.7]} 108. Rb3 {[%clk 0:00:05.9]} 108... Qd2+ {[%clk 0:00:06]} 109.
Ka3 {[%clk 0:00:06.3]} 109... Kc4 {[%clk 0:00:06.9]} 110. Rb7 {[%clk 0:00:05]}
110... Qc1+ {[%clk 0:00:05.4]} 111. Ka2 {[%clk 0:00:04.3]} 111... Qc2+ {[%clk
0:00:05]} 112. Ka1 {[%clk 0:00:03.4]} 112... Qa4+ {[%clk 0:00:04.7]} 113. Kb2
{[%clk 0:00:03.8]} 113... Qc6 {[%clk 0:00:03.1]} 114. Rb3 {[%clk 0:00:03.7]}
114... Qg2+ {[%clk 0:00:02.9]} 115. Ka3 {[%clk 0:00:04.2]} 115... Qa8+ {[%clk
0:00:02.9]} 116. Kb2 {[%clk 0:00:04.6]} 116... Qg2+ {[%clk 0:00:03.5]} 117. Ka3
{[%clk 0:00:05]} 117... Qc2 {[%clk 0:00:04.2]} 118. Rb4+ {[%clk 0:00:05]} 118...
Kc3 {[%clk 0:00:04.8]} 119. Rb7 {[%clk 0:00:04.5]} 119... Qc1+ {[%clk
0:00:02.3]} 120. Ka2 {[%clk 0:00:04.9]} 120... Qd2+ {[%clk 0:00:02.8]} 121. Ka3
{[%clk 0:00:05]} 1/2-1/2

[Event "*** Titled Tuesday Blitz"]
[Site "Chess.com"]
[Date "2020.10.20"]
[Round "3"]
[White "MatyChess1"]
[Black "infinitegiantkiller"]
[Result "1-0"]
[WhiteElo "2550"]
[BlackElo "2351"]
[TimeControl "180+1"]
[EndTime "10:23:07 PDT"]
[Termination "MatyChess1 won by resignation"]

1. e4 {[%clk 0:03:00.9]} 1... e6 {[%clk 0:03:00.9]} 2. d4 {[%clk 0:03:00.3]}
2... d5 {[%clk 0:03:01.8]} 3. Nc3 {[%clk 0:03:01.2]} 3... Nf6 {[%clk 0:03:01.9]}
4. e5 {[%clk 0:03:01]} 4... Nfd7 {[%clk 0:03:02]} 5. Nce2 {[%clk 0:03:01.9]}
5... c5 {[%clk 0:03:02.1]} 6. c3 {[%clk 0:03:02.8]} 6... Nc6 {[%clk 0:03:02.6]}
7. Nf3 {[%clk 0:03:03.4]} 7... f5 {[%clk 0:03:02.7]} 8. Nf4 {[%clk 0:03:02.4]}
8... Nb6 {[%clk 0:03:00.9]} 9. h4 {[%clk 0:02:59.1]} 9... Be7 {[%clk 0:03:00.2]}
10. Ng5 {[%clk 0:02:58.9]} 10... Bxg5 {[%clk 0:02:55.9]} 11. hxg5 {[%clk
0:02:58.5]} 11... Qe7 {[%clk 0:02:27.9]} 12. Ng6 {[%clk 0:02:47]} 12... Qf7
{[%clk 0:02:27.7]} 13. Nxh8 {[%clk 0:02:45.7]} 13... Qg8 {[%clk 0:02:28.6]} 14.
Qh5+ {[%clk 0:02:45]} 1-0

[Event "*** Titled Tuesday Blitz"]
[Site "Chess.com"]
[Date "2020.10.20"]
[Round "3"]
[White "GOGIEFF"]
[Black "Kildepiotr"]
[Result "1-0"]
[WhiteElo "2885"]
[BlackElo "2658"]
[TimeControl "180+1"]
[EndTime "10:23:55 PDT"]
[Termination "GOGIEFF won by resignation"]

1. d4 {[%clk 0:03:00.9]} 1... c5 {[%clk 0:02:58.5]} 2. d5 {[%clk 0:03:00.7]}
2... e5 {[%clk 0:02:57.9]} 3. Nc3 {[%clk 0:03:00.4]} 3... d6 {[%clk 0:02:56.5]}
4. e4 {[%clk 0:03:00.6]} 4... Be7 {[%clk 0:02:56.8]} 5. Nf3 {[%clk 0:03:00.7]}
5... a6 {[%clk 0:02:55.6]} 6. h3 {[%clk 0:02:50.4]} 6... b5 {[%clk 0:02:51.4]}
7. a4 {[%clk 0:02:50.3]} 7... b4 {[%clk 0:02:51.6]} 8. Ne2 {[%clk 0:02:50.3]}
8... f5 {[%clk 0:02:45.8]} 9. exf5 {[%clk 0:02:44.8]} 9... Bxf5 {[%clk
0:02:46.7]} 10. Ng3 {[%clk 0:02:44.9]} 10... Bg6 {[%clk 0:02:46.7]} 11. Bd3
{[%clk 0:02:44.9]} 11... Bxd3 {[%clk 0:02:40.1]} 12. Qxd3 {[%clk 0:02:45.8]}
12... Nf6 {[%clk 0:02:40]} 13. Ng5 {[%clk 0:02:42.5]} 13... Qc8 {[%clk
0:02:32.5]} 14. Ne6 {[%clk 0:02:38.1]} 14... Kf7 {[%clk 0:02:32.4]} 15. O-O
{[%clk 0:02:33.5]} 15... Nbd7 {[%clk 0:02:21.6]} 16. f4 {[%clk 0:02:27.5]} 16...
Re8 {[%clk 0:02:12]} 17. fxe5 {[%clk 0:02:26]} 17... Nxe5 {[%clk 0:02:11.9]} 18.
Qxh7 {[%clk 0:02:25.4]} 1-0

[Event "*** Titled Tuesday Blitz"]
[Site "Chess.com"]
[Date "2020.10.20"]
[Round "3"]
[White "Illingworth"]
[Black "manitodeplomo"]
[Result "1-0"]
[WhiteElo "2908"]
[BlackElo "2678"]
[TimeControl "180+1"]
[EndTime "10:24:28 PDT"]
[Termination "Illingworth won by resignation"]

1. d4 {[%clk 0:03:00.9]} 1... g6 {[%clk 0:03:00.9]} 2. e4 {[%clk 0:03:00.5]}
2... Bg7 {[%clk 0:03:01.2]} 3. Nf3 {[%clk 0:03:01.1]} 3... c5 {[%clk 0:03:01.6]}
4. dxc5 {[%clk 0:03:00.4]} 4... Nf6 {[%clk 0:03:01.8]} 5. Nc3 {[%clk 0:02:57.1]}
5... Qa5 {[%clk 0:03:00.6]} 6. e5 {[%clk 0:02:51.2]} 6... Ng4 {[%clk 0:02:58.7]}
7. Qd4 {[%clk 0:02:46]} 7... h5 {[%clk 0:02:56.9]} 8. b4 {[%clk 0:02:37.3]} 8...
Nc6 {[%clk 0:02:49.8]} 9. bxa5 {[%clk 0:02:33.4]} 9... Nxd4 {[%clk 0:02:49.5]}
10. Nxd4 {[%clk 0:02:33.7]} 10... Bxe5 {[%clk 0:02:48.7]} 11. Nde2 {[%clk
0:02:23.3]} 11... Nxh2 {[%clk 0:02:43.1]} 12. f4 {[%clk 0:02:16.6]} 12... Bxc3+
{[%clk 0:02:41.2]} 13. Nxc3 {[%clk 0:02:17.5]} 13... Ng4 {[%clk 0:02:41.7]} 14.
Nd5 {[%clk 0:02:14.2]} 14... Kd8 {[%clk 0:02:39]} 15. Be2 {[%clk 0:02:12.2]}
15... f5 {[%clk 0:02:26.8]} 16. Bb2 {[%clk 0:02:10.6]} 16... Re8 {[%clk
0:02:24]} 17. Bxg4 {[%clk 0:02:06.2]} 17... fxg4 {[%clk 0:02:23.7]} 18. O-O-O
{[%clk 0:02:05.8]} 18... d6 {[%clk 0:02:22]} 19. Rhe1 {[%clk 0:01:53.6]} 19...
Bf5 {[%clk 0:02:19.9]} 20. cxd6 {[%clk 0:01:52.6]} 20... exd6 {[%clk 0:02:20.4]}
21. Rxe8+ {[%clk 0:01:52.3]} 21... Kxe8 {[%clk 0:02:21.3]} 22. Nc7+ {[%clk
0:01:52.7]} 1-0

[Event "*** Titled Tuesday Blitz"]
[Site "Chess.com"]
[Date "2020.10.20"]
[Round "3"]
[White "Eliwood44"]
[Black "TrenerChos"]
[Result "1-0"]
[WhiteElo "2440"]
[BlackElo "2189"]
[TimeControl "180+1"]
[EndTime "10:24:51 PDT"]
[Termination "Eliwood44 won by resignation"]

1. d4 {[%clk 0:03:00.9]} 1... Nf6 {[%clk 0:02:55.2]} 2. Nf3 {[%clk 0:02:59.3]}
2... e6 {[%clk 0:02:54.5]} 3. e3 {[%clk 0:02:59.2]} 3... d5 {[%clk 0:02:55.4]}
4. Bd3 {[%clk 0:02:59.4]} 4... c5 {[%clk 0:02:51.3]} 5. O-O {[%clk 0:02:59.7]}
5... c4 {[%clk 0:02:50.9]} 6. Be2 {[%clk 0:02:58.6]} 6... Nc6 {[%clk 0:02:50.4]}
7. b3 {[%clk 0:02:58.9]} 7... b5 {[%clk 0:02:48.7]} 8. a4 {[%clk 0:02:58.9]}
8... bxa4 {[%clk 0:02:45.1]} 9. bxc4 {[%clk 0:02:58.6]} 9... Qa5 {[%clk
0:02:29.1]} 10. cxd5 {[%clk 0:02:50.9]} 10... exd5 {[%clk 0:02:29.5]} 11. c4
{[%clk 0:02:50.8]} 11... Bd7 {[%clk 0:02:18.9]} 12. c5 {[%clk 0:02:45.9]} 12...
Nb4 {[%clk 0:02:09.4]} 13. Bd2 {[%clk 0:02:41.1]} 13... Ne4 {[%clk 0:02:04.9]}
14. Be1 {[%clk 0:02:37.8]} 14... Rb8 {[%clk 0:01:59.1]} 15. Ne5 {[%clk
0:02:35.6]} 15... Bb5 {[%clk 0:01:49.2]} 16. Bxb5+ {[%clk 0:02:25.1]} 16... Qxb5
{[%clk 0:01:46.9]} 17. Bxb4 {[%clk 0:02:24.7]} 17... Qxb4 {[%clk 0:01:43.1]} 18.
Nc6 {[%clk 0:02:22.8]} 18... Qb2 {[%clk 0:01:38.7]} 19. Qxa4 {[%clk 0:02:20.1]}
19... Rb5 {[%clk 0:01:36]} 20. Nxa7 {[%clk 0:02:17.8]} 1-0

[Event "*** Titled Tuesday Blitz"]
[Site "Chess.com"]
[Date "2020.10.20"]
[Round "3"]
[White "1stSecond"]
[Black "WuinaterJr"]
[Result "1-0"]
[WhiteElo "2772"]
[BlackElo "2503"]
[TimeControl "180+1"]
[EndTime "10:24:56 PDT"]
[Termination "1stSecond won by resignation"]

1. c4 {[%clk 0:03:00.9]} 1... c5 {[%clk 0:02:58.8]} 2. Nf3 {[%clk 0:02:59.4]}
2... Nc6 {[%clk 0:02:57.7]} 3. d4 {[%clk 0:02:59.5]} 3... cxd4 {[%clk
0:02:57.9]} 4. Nxd4 {[%clk 0:03:00.4]} 4... Nf6 {[%clk 0:02:57.9]} 5. Nc3 {[%clk
0:03:00.4]} 5... e6 {[%clk 0:02:57]} 6. a3 {[%clk 0:02:59.3]} 6... Be7 {[%clk
0:02:56]} 7. e4 {[%clk 0:02:59.2]} 7... O-O {[%clk 0:02:55.9]} 8. Be3 {[%clk
0:02:58.7]} 8... b6 {[%clk 0:02:48.7]} 9. Nxc6 {[%clk 0:02:48.2]} 9... dxc6
{[%clk 0:02:48.6]} 10. e5 {[%clk 0:02:48.5]} 10... Nd7 {[%clk 0:02:43.8]} 11. f4
{[%clk 0:02:47.9]} 11... Bc5 {[%clk 0:02:38.3]} 12. Qf3 {[%clk 0:02:47.6]} 12...
Bxe3 {[%clk 0:02:34.6]} 13. Qxe3 {[%clk 0:02:48.5]} 13... c5 {[%clk 0:02:33.4]}
14. Qe4 {[%clk 0:02:39.6]} 14... Rb8 {[%clk 0:02:32.7]} 15. Bd3 {[%clk
0:02:40.2]} 15... g6 {[%clk 0:02:30.7]} 16. O-O {[%clk 0:02:40.1]} 16... Bb7
{[%clk 0:02:30.2]} 17. Qe3 {[%clk 0:02:40.1]} 17... Qe7 {[%clk 0:02:25.3]} 18.
Rad1 {[%clk 0:02:39.3]} 18... Rfd8 {[%clk 0:02:24.7]} 19. Be4 {[%clk 0:02:35.9]}
19... Nf8 {[%clk 0:02:20.1]} 20. Bxb7 {[%clk 0:02:27.6]} 20... Rxb7 {[%clk
0:02:19.6]} 21. Ne4 {[%clk 0:02:27.1]} 21... Rbd7 {[%clk 0:02:09.2]} 22. Nf6+
{[%clk 0:02:23.5]} 22... Kg7 {[%clk 0:02:07.9]} 23. Nxd7 {[%clk 0:02:21.3]}
23... Rxd7 {[%clk 0:02:07.6]} 24. Qf3 {[%clk 0:02:15.9]} 24... h5 {[%clk
0:02:06.1]} 25. Rxd7 {[%clk 0:02:15.7]} 25... Nxd7 {[%clk 0:02:04.6]} 26. Rd1
{[%clk 0:02:16.2]} 26... Nf8 {[%clk 0:02:01.7]} 27. g3 {[%clk 0:02:05.5]} 27...
h4 {[%clk 0:02:00.6]} 28. g4 {[%clk 0:02:05.7]} 28... Qc7 {[%clk 0:01:58.2]} 29.
g5 {[%clk 0:02:01.6]} 1-0

[Event "*** Titled Tuesday Blitz"]
[Site "Chess.com"]
[Date "2020.10.20"]
[Round "3"]
[White "niki_2003"]
[Black "QuintilianoR"]
[Result "0-1"]
[WhiteElo "1839"]
[BlackElo "2647"]
[TimeControl "180+1"]
[EndTime "10:25:13 PDT"]
[Termination "QuintilianoR won by checkmate"]

1. d4 {[%clk 0:02:51]} 1... Nf6 {[%clk 0:02:58.4]} 2. c4 {[%clk 0:02:51]} 2...
e6 {[%clk 0:02:58.2]} 3. Nc3 {[%clk 0:02:51.4]} 3... Bb4 {[%clk 0:02:57.8]} 4.
Qc2 {[%clk 0:02:50.1]} 4... c5 {[%clk 0:02:56.1]} 5. e3 {[%clk 0:02:47.4]} 5...
cxd4 {[%clk 0:02:54]} 6. exd4 {[%clk 0:02:45.7]} 6... d5 {[%clk 0:02:54.2]} 7.
Bg5 {[%clk 0:02:44.1]} 7... O-O {[%clk 0:02:53.5]} 8. Nf3 {[%clk 0:02:43.4]}
8... h6 {[%clk 0:02:49.9]} 9. Bxf6 {[%clk 0:02:42.7]} 9... Qxf6 {[%clk
0:02:49.2]} 10. cxd5 {[%clk 0:02:43.6]} 10... exd5 {[%clk 0:02:48.8]} 11. Bd3
{[%clk 0:02:43.6]} 11... Re8+ {[%clk 0:02:25.5]} 12. Be2 {[%clk 0:02:43.3]}
12... Bf5 {[%clk 0:02:18.5]} 13. Qa4 {[%clk 0:02:42.7]} 13... Nc6 {[%clk
0:02:16.8]} 14. O-O {[%clk 0:02:42.1]} 14... Bxc3 {[%clk 0:02:16.4]} 15. bxc3
{[%clk 0:02:41.6]} 15... Rxe2 {[%clk 0:02:16.3]} 16. Qb5 {[%clk 0:02:36.2]}
16... Re7 {[%clk 0:02:14.2]} 17. Qxd5 {[%clk 0:02:35.4]} 17... Be4 {[%clk
0:02:13.9]} 18. Qc5 {[%clk 0:02:27.4]} 18... Bxf3 {[%clk 0:02:13.4]} 19. gxf3
{[%clk 0:02:26.4]} 19... b6 {[%clk 0:02:08]} 20. Qb5 {[%clk 0:02:24.2]} 20...
Rae8 {[%clk 0:02:03.3]} 21. d5 {[%clk 0:02:16.2]} 21... Ne5 {[%clk 0:01:59.9]}
22. Rad1 {[%clk 0:02:05.1]} 22... Nxf3+ {[%clk 0:01:46]} 23. Kg2 {[%clk
0:02:02.9]} 23... Nh4+ {[%clk 0:01:45.9]} 24. Kg1 {[%clk 0:02:00.6]} 24... Qg5+
{[%clk 0:01:44.7]} 25. Kh1 {[%clk 0:01:56.5]} 25... Qg2# {[%clk 0:01:44.5]} 0-1

[Event "*** Titled Tuesday Blitz"]
[Site "Chess.com"]
[Date "2020.10.20"]
[Round "3"]
[White "731291"]
[Black "ChristopherYoo"]
[Result "1/2-1/2"]
[WhiteElo "2635"]
[BlackElo "2835"]
[TimeControl "180+1"]
[EndTime "10:25:34 PDT"]
[Termination "Game drawn by repetition"]

1. e4 {[%clk 0:03:00.9]} 1... c6 {[%clk 0:02:56.8]} 2. Nc3 {[%clk 0:02:54.6]}
2... d5 {[%clk 0:02:56.3]} 3. Nf3 {[%clk 0:02:55.3]} 3... Bg4 {[%clk 0:02:54.3]}
4. h3 {[%clk 0:02:54.9]} 4... Bh5 {[%clk 0:02:54.3]} 5. d4 {[%clk 0:02:54.5]}
5... e6 {[%clk 0:02:42.7]} 6. Bd3 {[%clk 0:02:47.1]} 6... Nf6 {[%clk 0:02:38.7]}
7. e5 {[%clk 0:02:47.3]} 7... Nfd7 {[%clk 0:02:38.5]} 8. g4 {[%clk 0:02:47.4]}
8... Bg6 {[%clk 0:02:36]} 9. Bxg6 {[%clk 0:02:48]} 9... hxg6 {[%clk 0:02:34.9]}
10. Ne2 {[%clk 0:02:48.9]} 10... c5 {[%clk 0:02:26.9]} 11. c3 {[%clk 0:02:49]}
11... Nc6 {[%clk 0:02:25.9]} 12. Kf1 {[%clk 0:02:48.9]} 12... Qb6 {[%clk
0:02:25.6]} 13. Kg2 {[%clk 0:02:48.6]} 13... Be7 {[%clk 0:02:24.9]} 14. b3
{[%clk 0:02:41.7]} 14... Rc8 {[%clk 0:02:18.8]} 15. Bg5 {[%clk 0:02:00.9]} 15...
Bxg5 {[%clk 0:01:41.8]} 16. Nxg5 {[%clk 0:02:01.8]} 16... cxd4 {[%clk
0:01:41.6]} 17. cxd4 {[%clk 0:02:01.3]} 17... Ke7 {[%clk 0:01:37.8]} 18. Qd2
{[%clk 0:01:56.4]} 18... Qb4 {[%clk 0:01:33.7]} 19. Qf4 {[%clk 0:01:44]} 19...
Rhf8 {[%clk 0:01:32.7]} 20. Nh7 {[%clk 0:01:38.7]} 20... Rh8 {[%clk 0:01:31.1]}
21. Ng5 {[%clk 0:01:37.8]} 21... Rhf8 {[%clk 0:01:30.8]} 22. Nh7 {[%clk
0:01:34.5]} 22... Rh8 {[%clk 0:01:30.7]} 23. Ng5 {[%clk 0:01:34.9]} 1/2-1/2

[Event "*** Titled Tuesday Blitz"]
[Site "Chess.com"]
[Date "2020.10.20"]
[Round "3"]
[White "Vyacheslav_N"]
[Black "rugbyclub"]
[Result "1-0"]
[WhiteElo "2418"]
[BlackElo "2200"]
[TimeControl "180+1"]
[EndTime "10:25:40 PDT"]
[Termination "Vyacheslav_N won by resignation"]

1. e4 {[%clk 0:03:00.9]} 1... e6 {[%clk 0:02:59.7]} 2. d4 {[%clk 0:03:01.1]}
2... d5 {[%clk 0:02:59.3]} 3. Nd2 {[%clk 0:03:01.4]} 3... c5 {[%clk 0:02:57.8]}
4. exd5 {[%clk 0:02:32.7]} 4... Qxd5 {[%clk 0:02:57.4]} 5. Ngf3 {[%clk
0:02:32.7]} 5... Nc6 {[%clk 0:02:56]} 6. Bc4 {[%clk 0:02:33.6]} 6... Qd7 {[%clk
0:02:56]} 7. dxc5 {[%clk 0:02:31.1]} 7... Bxc5 {[%clk 0:02:55]} 8. O-O {[%clk
0:02:31.5]} 8... a6 {[%clk 0:02:52.5]} 9. Qe2 {[%clk 0:02:28.2]} 9... Nf6 {[%clk
0:02:51.5]} 10. c3 {[%clk 0:02:17.8]} 10... O-O {[%clk 0:02:45.1]} 11. Bb3
{[%clk 0:02:13.6]} 11... Re8 {[%clk 0:02:41]} 12. Bc2 {[%clk 0:02:11.1]} 12...
b5 {[%clk 0:02:37.4]} 13. Ne4 {[%clk 0:02:11.3]} 13... Be7 {[%clk 0:02:28.6]}
14. Rd1 {[%clk 0:02:08.3]} 14... Qc7 {[%clk 0:02:26]} 15. Nxf6+ {[%clk 0:02:00]}
15... Bxf6 {[%clk 0:02:25.4]} 16. Ng5 {[%clk 0:02:00.9]} 16... g6 {[%clk
0:02:10.1]} 17. Nxh7 {[%clk 0:01:49.7]} 17... Kxh7 {[%clk 0:02:06.9]} 18. Qh5+
{[%clk 0:01:48.8]} 18... Kg8 {[%clk 0:01:55.7]} 19. Bxg6 {[%clk 0:01:45.2]}
19... fxg6 {[%clk 0:01:55.3]} 20. Qxg6+ {[%clk 0:01:46.1]} 20... Qg7 {[%clk
0:01:49.8]} 21. Qxe8+ {[%clk 0:01:45.8]} 21... Kh7 {[%clk 0:01:40.1]} 22. Qh5+
{[%clk 0:01:45.9]} 22... Kg8 {[%clk 0:01:39.7]} 23. Bh6 {[%clk 0:01:46.8]} 23...
Qf7 {[%clk 0:01:38.3]} 24. Qg4+ {[%clk 0:01:39.2]} 24... Kh7 {[%clk 0:01:38]}
25. Qe4+ {[%clk 0:01:35]} 25... Qg6 {[%clk 0:01:36.9]} 26. Qxc6 {[%clk
0:01:34.1]} 1-0